[Event "29th Czech Open-Rapid 2018"]
[Site "Pardubice"]
[Date "2018.07.19"]
[Round "5"]
[White "Chekletsov, Ilya"]
[Black "Chrz, Pavel"]
[Result "*"]
[ECO "A41"]
[WhiteElo "2273"]
[BlackElo "2038"]
[Annotator "NA"]
[PlyCount "91"]
[EventDate "2018.07.18"]
[EventType "swiss"]
[EventCountry "CZE"]
[SourceTitle "playchess.com"]
[Source "ChessBase"]
[SourceQuality "1"]
[TimeControl "900+10"]

1. d4 {[%emt 0:00:00]} d6 {[%emt 0:00:04]} 2. c4 {[%emt 0:00:00]} e5 {[%emt 0:00:01]} 3. Nc3 {[%emt 0:00:00]} Nc6 {[%emt 0:00:43]} 4. Nf3 {[%emt 0:00:04]} exd4 {[%emt 0:00:28]} 5. Nxd4 {[%emt 0:00:01]} Bd7 {[%emt 0:00:38]} 6. e3 {[%emt 0:00:16]} Nf6 {[%emt 0:00:40]} 7. g3 {[%emt 0:00:36]} Ne5 {[%emt 0:00:31]} 8. f4 {[%emt 0:00:43]} c5 {[%emt 0:02:47]} 9. Nc2 {[%emt 0:02:09]} Bg4 {[%emt 0:00:58]} 10. Be2 {[%emt 0:00:05]} Bxe2 {[%emt 0:01:02]} 11. Qxe2 {[%emt 0:00:01]} Nc6 {[%emt 0:00:12]} 12. O-O {[%emt 0:00:04]} Qe7 {[%emt 0:01:00]} 13. Nd5 {[%emt 0:00:51]} Nxd5 {[%emt 0:05:02]} 14. cxd5 {[%emt 0:00:02]} Nd4 {[%emt 0:00:07]} 15. Nxd4 {[%emt 0:03:11]} cxd4 {[%emt 0:00:02]} 16. Qc4 {[%emt 0:00:46]} g6 {[%emt 0:02:09]} 17. Qxd4 {[%emt 0:00:47]} f6 {[%emt 0:00:01]} 18. b3 {[%emt 0:05:19]} Rg8 {[%emt 0:00:47]} 19. e4 {[%emt 0:00:31]} Bg7 {[%emt 0:00:09]} 20. Bb2 {[%emt 0:00:00]} Kf7 {[%emt 0:00:16]} 21. e5 {[%emt 0:00:36]} f5 {[%emt 0:00:18]} 22. e6+ {[%emt 0:00:14]} Kf8 {[%emt 0:00:02]} 23. Qd2 {[%emt 0:00:03]} Bxb2 {[%emt 0:00:31]} 24. Qxb2 {[%emt 0:00:01]} Qg7 {[%emt 0:00:01]} 25. Qxg7+ {[%emt 0:00:02]} Kxg7 {[%emt 0:00:14]} 26. Rac1 {[%emt 0:00:01]} Rac8 {[%emt 0:00:05]} 27. Kf2 {[%emt 0:00:01]} Kf6 {[%emt 0:00:04]} 28. Ke3 {[%emt 0:00:01]} h6 {[%emt 0:00:12]} 29. Kd2 {[%emt 0:00:04]} g5 {[%emt 0:00:07]} 30. Rxc8 {[%emt 0:00:48]} Rxc8 {[%emt 0:00:01]} 31. Rc1 {[%emt 0:00:01]} Rg8 {[%emt 0:00:16]} 32. Rc7 {[%emt 0:00:05]} gxf4 {[%emt 0:00:02]} 33. gxf4 {[%emt 0:00:01]} Rg2+ {[%emt 0:00:02]} 34. Ke3 {[%emt 0:00:01]} Rxh2 {[%emt 0:00:08]} 35. Rxb7 {[%emt 0:00:19]} Rxa2 {[%emt 0:00:05]} 36. Rh7 {[%emt 0:00:02]} Ra1 {[%emt 0:00:15]} 37. Rxh6+ {[%emt 0:00:05]} Kg7 {[%emt 0:00:07]} 38. Rh5 {[%emt 0:00:04]} Kg6 {[%emt 0:00:09]} 39. Rg5+ {[%emt 0:00:10]} Kf6 {[%emt 0:00:05]} 40. Kd3 {[%emt 0:01:47]} Rd1+ {[%emt 0:00:30]} 41. Kc4 {[%emt 0:00:02]} Rf1 {[%emt 0:00:07]} 42. Rh5 {[%emt 0:00:05]} Rxf4+ {[%emt 0:00:04]} 43. Kb5 {[%emt 0:00:01]} Re4 {[%emt 0:00:52]} 44. Kc6 {[%emt 0:00:04]} f4 {[%emt 0:00:02]} 45. Kxd6 {[%emt 0:00:27]} f3 {[%emt 0:00:01]} 46. Rh7 {[%emt 0:00:01]} *

[Event "29th Czech Open-Rapid 2018"]
[Site "Pardubice"]
[Date "2018.07.19"]
[Round "5"]
[White "Lushnikov, Evgeny"]
[Black "Jazdanovs, Aleksandrs"]
[Result "1/2-1/2"]
[ECO "B52"]
[WhiteElo "2234"]
[BlackElo "2013"]
[Annotator "NA"]
[PlyCount "105"]
[EventDate "2018.07.18"]
[EventType "swiss"]
[EventCountry "CZE"]
[SourceTitle "playchess.com"]
[Source "ChessBase"]
[SourceQuality "1"]
[TimeControl "900+10"]

1. e4 {[%emt 0:00:00]} c5 {[%emt 0:00:00]} 2. Nf3 {[%emt 0:00:00]} d6 {[%emt 0:00:01]} 3. Bb5+ {[%emt 0:00:00]} Bd7 {[%emt 0:00:02]} 4. Bxd7+ {[%emt 0:00:00]} Qxd7 {[%emt 0:00:03]} 5. c4 {[%emt 0:00:00]} Nf6 {[%emt 0:00:03]} 6. Nc3 {[%emt 0:00:00]} g6 {[%emt 0:00:05]} 7. d4 {[%emt 0:00:03]} cxd4 {[%emt 0:00:04]} 8. Nxd4 {[%emt 0:00:02]} Bg7 {[%emt 0:00:03]} 9. f3 {[%emt 0:00:06]} O-O {[%emt 0:00:03]} 10. Be3 {[%emt 0:00:01]} Rc8 {[%emt 0:00:09]} 11. b3 {[%emt 0:00:03]} Nc6 {[%emt 0:00:06]} 12. O-O {[%emt 0:00:06]} Qd8 {[%emt 0:00:06]} 13. Rc1 {[%emt 0:00:06]} Nd7 {[%emt 0:00:05]} 14. Qd2 {[%emt 0:00:15]} Nxd4 {[%emt 0:00:11]} 15. Bxd4 {[%emt 0:00:01]} Bxd4+ {[%emt 0:00:01]} 16. Qxd4 {[%emt 0:00:01]} Qb6 {[%emt 0:00:02]} 17. Rfd1 {[%emt 0:00:43]} Qxd4+ {[%emt 0:01:06]} 18. Rxd4 {[%emt 0:00:01]} a6 {[%emt 0:00:11]} 19. Rdd1 {[%emt 0:03:28]} Rc5 {[%emt 0:02:55]} 20. a4 {[%emt 0:02:14]} Nf6 {[%emt 0:00:25]} 21. Kf2 {[%emt 0:01:53]} Rd8 {[%emt 0:00:47]} 22. Rc2 {[%emt 0:02:57]} Kf8 {[%emt 0:00:44]} 23. Rcd2 {[%emt 0:00:59]} Rc6 {[%emt 0:00:28]} 24. e5 {[%emt 0:01:20]} Ne8 {[%emt 0:00:11]} 25. Ne4 {[%emt 0:00:09]} f6 {[%emt 0:01:09]} 26. exd6 {[%emt 0:00:51]} Nxd6 {[%emt 0:00:04]} 27. Nxd6 {[%emt 0:00:20]} exd6 {[%emt 0:01:14]} 28. Rd5 {[%emt 0:00:12]} Ke7 {[%emt 0:00:10]} 29. Re1+ {[%emt 0:01:26]} Kd7 {[%emt 0:00:04]} 30. Re4 {[%emt 0:00:05]} Rc5 {[%emt 0:00:17]} 31. Rd3 {[%emt 0:00:30]} Kc6 {[%emt 0:02:24]} 32. b4 {[%emt 0:00:27]} Re5 {[%emt 0:00:07]} 33. Rxe5 {[%emt 0:01:02]} fxe5 {[%emt 0:00:01]} 34. Rd5 {[%emt 0:00:01]} Rf8 {[%emt 0:00:16]} 35. g3 {[%emt 0:00:34]} b6 {[%emt 0:00:20]} 36. Ke3 {[%emt 0:00:03]} g5 {[%emt 0:01:04]} 37. h3 {[%emt 0:00:28]} h5 {[%emt 0:00:55]} 38. Rd2 {[%emt 0:00:18]} h4 {[%emt 0:00:10]} 39. gxh4 {[%emt 0:00:04]} gxh4 {[%emt 0:00:02]} 40. Rg2 {[%emt 0:00:01]} b5 {[%emt 0:00:08]} 41. axb5+ {[%emt 0:00:10]} axb5 {[%emt 0:00:02]} 42. cxb5+ {[%emt 0:00:38]} Kxb5 43. Rd2 {[%emt 0:00:01]} Rf6 {[%emt 0:00:35]} 44. Rb2 {[%emt 0:00:17]} d5 {[%emt 0:00:27]} 45. Rd2 {[%emt 0:00:01]} Kc4 {[%emt 0:02:11]} 46. Rb2 {[%emt 0:00:26]} Rb6 {[%emt 0:00:43]} 47. f4 {[%emt 0:00:05]} exf4+ {[%emt 0:00:09]} 48. Kxf4 {[%emt 0:00:01]} Rxb4 {[%emt 0:00:02]} 49. Re2 {[%emt 0:00:25]} Kc3+ {[%emt 0:00:04]} 50. Kf3 {[%emt 0:00:14]} d4 {[%emt 0:00:09]} 51. Re7 {[%emt 0:00:01]} d3 {[%emt 0:00:05]} 52. Ke3 {[%emt 0:00:03]} Kc2 {[%emt 0:02:04]} 53. Rc7+ {[%emt 0:00:04]} 1/2-1/2

[Event "29th Czech Open-Rapid 2018"]
[Site "Pardubice"]
[Date "2018.07.19"]
[Round "5"]
[White "Vusatiuk, Vladimir"]
[Black "Zarovs, Aleksandrs"]
[Result "1-0"]
[ECO "A46"]
[WhiteElo "2230"]
[BlackElo "1845"]
[Annotator "NA"]
[PlyCount "67"]
[EventDate "2018.07.18"]
[EventType "swiss"]
[EventCountry "CZE"]
[SourceTitle "playchess.com"]
[Source "ChessBase"]
[SourceQuality "1"]
[TimeControl "900+10"]

1. d4 {[%emt 0:00:00]} Nf6 {[%emt 0:00:00]} 2. Nf3 {[%emt 0:00:00]} e6 {[%emt 0:00:00]} 3. Nbd2 {[%emt 0:00:00]} c5 {[%emt 0:00:14]} 4. e3 {[%emt 0:00:02]} b6 {[%emt 0:00:02]} 5. Bd3 {[%emt 0:00:06]} Bb7 {[%emt 0:00:01]} 6. b3 {[%emt 0:00:06]} Be7 {[%emt 0:00:03]} 7. Bb2 {[%emt 0:00:00]} d6 {[%emt 0:00:03]} 8. O-O {[%emt 0:00:05]} O-O {[%emt 0:00:06]} 9. c4 {[%emt 0:00:03]} cxd4 {[%emt 0:00:14]} 10. exd4 {[%emt 0:00:37]} d5 {[%emt 0:00:07]} 11. Ne5 {[%emt 0:00:16]} Nbd7 {[%emt 0:00:17]} 12. Qe2 {[%emt 0:00:28]} Nxe5 {[%emt 0:00:50]} 13. dxe5 {[%emt 0:00:03]} Nd7 {[%emt 0:00:01]} 14. Rad1 {[%emt 0:01:10]} Nc5 {[%emt 0:00:06]} 15. Bb1 {[%emt 0:00:01]} a5 {[%emt 0:02:19]} 16. f4 {[%emt 0:00:22]} f6 {[%emt 0:00:27]} 17. exf6 {[%emt 0:00:38]} Bxf6 {[%emt 0:00:03]} 18. Qh5 {[%emt 0:00:13]} h6 {[%emt 0:00:47]} 19. Be5 {[%emt 0:00:13]} Qe8 {[%emt 0:00:34]} 20. Qxe8 {[%emt 0:00:55]} Raxe8 {[%emt 0:00:18]} 21. Bg6 {[%emt 0:00:11]} Bxe5 {[%emt 0:00:40]} 22. fxe5 {[%emt 0:00:03]} Rxf1+ {[%emt 0:00:09]} 23. Rxf1 {[%emt 0:00:02]} Rf8 {[%emt 0:00:19]} 24. Bh7+ {[%emt 0:00:07]} Kxh7 {[%emt 0:00:04]} 25. Rxf8 {[%emt 0:00:01]} Nd3 {[%emt 0:00:23]} 26. Re8 {[%emt 0:01:19]} dxc4 {[%emt 0:00:26]} 27. bxc4 {[%emt 0:00:06]} Nxe5 {[%emt 0:00:44]} 28. Rxe6 {[%emt 0:00:01]} Nd7 {[%emt 0:00:01]} 29. Rd6 {[%emt 0:00:02]} Bc8 {[%emt 0:00:24]} 30. Kf2 {[%emt 0:00:25]} Kg8 {[%emt 0:00:41]} 31. Ne4 {[%emt 0:02:11]} Kf8 {[%emt 0:00:17]} 32. c5 {[%emt 0:02:31]} bxc5 {[%emt 0:01:24]} 33. Nxc5 {[%emt 0:00:02]} Ke7 {[%emt 0:00:08]} 34. Rc6 {[%emt 0:00:10]} 1-0

[Event "29th Czech Open-Rapid 2018"]
[Site "Pardubice"]
[Date "2018.07.19"]
[Round "5"]
[White "Bente, Bjoern"]
[Black "Zdrazil, Jan"]
[Result "1/2-1/2"]
[ECO "B90"]
[WhiteElo "2228"]
[BlackElo "1809"]
[Annotator "NA"]
[PlyCount "86"]
[EventDate "2018.07.18"]
[EventType "swiss"]
[EventCountry "CZE"]
[SourceTitle "playchess.com"]
[Source "ChessBase"]
[SourceQuality "1"]
[TimeControl "900+10"]

1. e4 {[%emt 0:00:00]} c5 {[%emt 0:00:00]} 2. Nf3 {[%emt 0:00:00]} d6 {[%emt 0:00:00]} 3. d4 {[%emt 0:00:00]} cxd4 {[%emt 0:00:00]} 4. Nxd4 {[%emt 0:00:00]} Nf6 {[%emt 0:00:00]} 5. Nc3 {[%emt 0:00:00]} a6 {[%emt 0:00:00]} 6. f3 {[%emt 0:00:02]} e5 {[%emt 0:00:00]} 7. Nb3 {[%emt 0:00:01]} Be6 {[%emt 0:00:00]} 8. Be3 {[%emt 0:00:02]} Be7 {[%emt 0:00:00]} 9. Qd2 {[%emt 0:00:04]} O-O {[%emt 0:00:02]} 10. g4 {[%emt 0:00:03]} d5 {[%emt 0:00:01]} 11. exd5 {[%emt 0:00:22]} Nxd5 {[%emt 0:00:45]} 12. Nxd5 {[%emt 0:00:36]} Bxd5 {[%emt 0:02:22]} 13. Bg2 {[%emt 0:00:06]} Bh4+ {[%emt 0:02:18]} 14. Bf2 {[%emt 0:01:27]} Bg5 {[%emt 0:00:02]} 15. Qe2 {[%emt 0:00:39]} Nc6 {[%emt 0:00:55]} 16. Rd1 {[%emt 0:00:27]} Nd4 {[%emt 0:02:12]} 17. Nxd4 {[%emt 0:00:24]} Qa5+ {[%emt 0:01:01]} 18. c3 {[%emt 0:00:02]} exd4 {[%emt 0:00:02]} 19. O-O {[%emt 0:00:07]} Qxa2 {[%emt 0:01:22]} 20. Rxd4 {[%emt 0:01:33]} Bf6 {[%emt 0:00:31]} 21. Rf4 {[%emt 0:00:02]} Bxc3 {[%emt 0:00:47]} 22. Rd1 {[%emt 0:01:35]} Rfe8 {[%emt 0:01:24]} 23. Qd3 {[%emt 0:00:57]} Be5 {[%emt 0:00:05]} 24. Rf5 {[%emt 0:00:45]} Bc6 {[%emt 0:00:34]} 25. f4 {[%emt 0:01:45]} Bxg2 {[%emt 0:00:46]} 26. Kxg2 {[%emt 0:00:02]} Bf6 {[%emt 0:00:23]} 27. Rd5 {[%emt 0:01:18]} g6 {[%emt 0:01:29]} 28. Bd4 {[%emt 0:00:32]} Bxd4 {[%emt 0:00:14]} 29. Qxd4 {[%emt 0:00:01]} Re2+ {[%emt 0:01:01]} 30. Kf3 {[%emt 0:00:51]} Qxb2 {[%emt 0:00:24]} 31. Rd7 {[%emt 0:01:09]} Rae8 {[%emt 0:00:48]} 32. Rd8 {[%emt 0:02:37]} Qxd4 {[%emt 0:00:31]} 33. R1xd4 {[%emt 0:00:01]} Kg7 {[%emt 0:00:12]} 34. g5 {[%emt 0:00:15]} Rxd8 {[%emt 0:00:08]} 35. Rxd8 {[%emt 0:00:01]} Re6 {[%emt 0:00:05]} 36. Rd7 {[%emt 0:00:08]} b5 {[%emt 0:00:01]} 37. Rb7 {[%emt 0:00:03]} Kf8 {[%emt 0:00:18]} 38. h4 {[%emt 0:00:03]} Ke8 {[%emt 0:00:07]} 39. Kg4 {[%emt 0:00:01]} Kf8 {[%emt 0:00:25]} 40. h5 {[%emt 0:00:02]} gxh5+ {[%emt 0:00:07]} 41. Kxh5 {[%emt 0:00:02]} Kg7 {[%emt 0:00:04]} 42. f5 {[%emt 0:00:06]} Re5 {[%emt 0:00:14]} 43. f6+ {[%emt 0:00:26]} Kf8 {[%emt 0:00:02]} 1/2-1/2

[Event "29th Czech Open-Rapid 2018"]
[Site "Pardubice"]
[Date "2018.07.19"]
[Round "5"]
[White "Annenkov, Kirill"]
[Black "Vykydal, Frantisek"]
[Result "0-1"]
[ECO "A53"]
[WhiteElo "2206"]
[BlackElo "2045"]
[Annotator "NA"]
[PlyCount "96"]
[EventDate "2018.07.18"]
[EventType "swiss"]
[EventCountry "CZE"]
[SourceTitle "playchess.com"]
[Source "ChessBase"]
[SourceQuality "1"]
[TimeControl "900+10"]

1. d4 {[%emt 0:00:00]} Nf6 {[%emt 0:00:00]} 2. c4 {[%emt 0:00:00]} d6 {[%emt 0:00:00]} 3. Nf3 {[%emt 0:00:00]} Bg4 {[%emt 0:00:00]} 4. g3 {[%emt 0:00:01]} Bxf3 {[%emt 0:00:00]} 5. exf3 {[%emt 0:00:02]} Nbd7 {[%emt 0:00:00]} 6. f4 {[%emt 0:00:06]} e5 {[%emt 0:00:10]} 7. fxe5 {[%emt 0:00:10]} dxe5 {[%emt 0:00:02]} 8. Bg2 {[%emt 0:00:07]} c6 {[%emt 0:00:07]} 9. O-O {[%emt 0:00:06]} Be7 {[%emt 0:00:05]} 10. Nc3 {[%emt 0:00:08]} O-O {[%emt 0:00:03]} 11. Be3 {[%emt 0:00:12]} exd4 {[%emt 0:00:05]} 12. Bxd4 {[%emt 0:00:15]} Bc5 13. Re1 Bxd4 {[%emt 0:00:46]} 14. Qxd4 {[%emt 0:00:12]} Qb6 {[%emt 0:00:08]} 15. Rad1 {[%emt 0:00:51]} Qxd4 {[%emt 0:00:20]} 16. Rxd4 {[%emt 0:00:02]} Rfe8 {[%emt 0:00:02]} 17. Red1 {[%emt 0:00:26]} Nc5 {[%emt 0:00:25]} 18. b4 {[%emt 0:00:42]} Ne6 {[%emt 0:00:02]} 19. R4d2 {[%emt 0:00:03]} Rad8 {[%emt 0:00:06]} 20. Bh3 {[%emt 0:00:50]} Rxd2 {[%emt 0:00:31]} 21. Rxd2 {[%emt 0:00:02]} Ng5 {[%emt 0:00:33]} 22. Kg2 {[%emt 0:00:30]} Nxh3 {[%emt 0:00:22]} 23. Kxh3 {[%emt 0:00:02]} Kf8 {[%emt 0:00:03]} 24. Kg2 {[%emt 0:00:24]} Ne4 {[%emt 0:00:24]} 25. Nxe4 {[%emt 0:01:24]} Rxe4 {[%emt 0:00:02]} 26. Rd7 {[%emt 0:00:02]} Re7 {[%emt 0:00:01]} 27. Rd4 {[%emt 0:00:33]} Ke8 {[%emt 0:00:03]} 28. Kf3 {[%emt 0:00:04]} Re6 {[%emt 0:00:07]} 29. h4 {[%emt 0:00:24]} Ke7 {[%emt 0:00:02]} 30. Rd3 {[%emt 0:00:10]} Rd6 {[%emt 0:00:07]} 31. Ra3 {[%emt 0:00:19]} a6 {[%emt 0:00:08]} 32. Ke3 {[%emt 0:00:05]} Kd7 {[%emt 0:00:10]} 33. Ra5 {[%emt 0:00:12]} Re6+ {[%emt 0:00:23]} 34. Kd3 {[%emt 0:00:20]} Rd6+ {[%emt 0:00:07]} 35. Ke4 {[%emt 0:01:19]} Re6+ {[%emt 0:00:16]} 36. Re5 {[%emt 0:00:12]} f6 {[%emt 0:00:03]} 37. Rxe6 {[%emt 0:00:04]} Kxe6 {[%emt 0:00:02]} 38. g4 {[%emt 0:01:02]} g6 {[%emt 0:00:14]} 39. Kd4 {[%emt 0:00:28]} b6 {[%emt 0:00:36]} 40. a4 {[%emt 0:00:45]} Kd6 {[%emt 0:00:08]} 41. c5+ {[%emt 0:00:33]} bxc5+ {[%emt 0:00:09]} 42. bxc5+ {[%emt 0:00:01]} Ke6 {[%emt 0:00:02]} 43. a5 {[%emt 0:00:17]} g5 {[%emt 0:01:40]} 44. h5 {[%emt 0:02:10]} f5 {[%emt 0:00:25]} 45. f3 {[%emt 0:00:05]} h6 {[%emt 0:00:07]} 46. Ke3 {[%emt 0:03:55]} fxg4 {[%emt 0:01:24]} 47. fxg4 {[%emt 0:00:01]} Kd5 {[%emt 0:00:04]} 48. Kf3 {[%emt 0:00:05]} Kd4 {[%emt 0:00:17]} 0-1

[Event "29th Czech Open-Rapid 2018"]
[Site "Pardubice"]
[Date "2018.07.19"]
[Round "5"]
[White "Soural, Jan"]
[Black "Salykin, Aleksandr"]
[Result "1-0"]
[ECO "D11"]
[WhiteElo "2202"]
[BlackElo "1745"]
[Annotator "NA"]
[PlyCount "65"]
[EventDate "2018.07.18"]
[EventType "swiss"]
[EventCountry "CZE"]
[SourceTitle "playchess.com"]
[Source "ChessBase"]
[SourceQuality "1"]
[TimeControl "900+10"]

1. d4 {[%emt 0:00:00]} d5 {[%emt 0:00:00]} 2. c4 {[%emt 0:00:00]} c6 {[%emt 0:00:00]} 3. Nf3 {[%emt 0:00:00]} Nf6 {[%emt 0:00:00]} 4. e3 {[%emt 0:00:00]} a6 {[%emt 0:00:00]} 5. Nc3 {[%emt 0:00:30]} Bg4 {[%emt 0:01:51]} 6. h3 {[%emt 0:00:09]} Bxf3 {[%emt 0:00:28]} 7. Qxf3 {[%emt 0:00:08]} e6 {[%emt 0:00:09]} 8. Bd3 {[%emt 0:00:46]} Nbd7 {[%emt 0:01:19]} 9. g4 {[%emt 0:01:13]} h6 {[%emt 0:00:31]} 10. h4 {[%emt 0:01:29]} dxc4 {[%emt 0:06:11]} 11. Bxc4 {[%emt 0:00:01]} b5 {[%emt 0:00:01]} 12. Bb3 {[%emt 0:00:36]} Rc8 {[%emt 0:01:48]} 13. g5 {[%emt 0:00:39]} hxg5 {[%emt 0:00:33]} 14. hxg5 {[%emt 0:00:01]} Rxh1+ {[%emt 0:00:02]} 15. Qxh1 {[%emt 0:00:01]} Nd5 {[%emt 0:00:08]} 16. e4 {[%emt 0:01:01]} Nxc3 {[%emt 0:03:12]} 17. bxc3 {[%emt 0:00:01]} g6 {[%emt 0:00:01]} 18. Qh8 {[%emt 0:02:17]} Qe7 {[%emt 0:00:17]} 19. Be3 {[%emt 0:01:28]} c5 {[%emt 0:00:10]} 20. Kf1 {[%emt 0:01:33]} cxd4 {[%emt 0:01:09]} 21. cxd4 {[%emt 0:00:11]} Nb6 {[%emt 0:00:09]} 22. Rc1 {[%emt 0:02:03]} Rxc1+ {[%emt 0:00:17]} 23. Bxc1 {[%emt 0:00:00]} Kd7 {[%emt 0:00:06]} 24. Bf4 {[%emt 0:00:52]} Nc4 {[%emt 0:00:13]} 25. Bxc4 {[%emt 0:00:43]} bxc4 {[%emt 0:00:01]} 26. Qe5 {[%emt 0:00:02]} Qd6 {[%emt 0:00:07]} 27. Qxd6+ {[%emt 0:01:15]} Bxd6 {[%emt 0:00:02]} 28. Bxd6 {[%emt 0:00:01]} Kxd6 {[%emt 0:00:02]} 29. Ke2 {[%emt 0:00:12]} Kc6 {[%emt 0:00:49]} 30. Kd2 {[%emt 0:00:34]} e5 {[%emt 0:00:12]} 31. dxe5 {[%emt 0:00:47]} Kc5 {[%emt 0:00:10]} 32. Kc3 {[%emt 0:00:01]} a5 {[%emt 0:00:03]} 33. a4 {[%emt 0:00:04] Kd5} 1-0

[Event "29th Czech Open-Rapid 2018"]
[Site "Pardubice"]
[Date "2018.07.19"]
[Round "5"]
[White "Semjonovs, Ilja"]
[Black "Gukesh, Dommaraju"]
[Result "*"]
[ECO "B13"]
[WhiteElo "2187"]
[BlackElo "1519"]
[Annotator "NA"]
[PlyCount "96"]
[EventDate "2018.07.18"]
[EventType "swiss"]
[EventCountry "CZE"]
[SourceTitle "playchess.com"]
[Source "ChessBase"]
[SourceQuality "1"]
[TimeControl "900+10"]

1. e4 {[%emt 0:00:00]} c6 {[%emt 0:00:00]} 2. d4 {[%emt 0:00:00]} d5 {[%emt 0:00:00]} 3. exd5 {[%emt 0:00:04]} cxd5 {[%emt 0:00:00]} 4. Bd3 {[%emt 0:00:03]} Nc6 {[%emt 0:00:00]} 5. c3 {[%emt 0:00:02]} g6 {[%emt 0:00:02]} 6. Nf3 {[%emt 0:00:24]} Bf5 {[%emt 0:00:02]} 7. O-O {[%emt 0:00:40]} Bxd3 {[%emt 0:00:20]} 8. Qxd3 {[%emt 0:00:03]} e6 {[%emt 0:00:02]} 9. Re1 {[%emt 0:01:21]} Bg7 {[%emt 0:00:10]} 10. Bf4 {[%emt 0:00:56]} Nge7 {[%emt 0:00:06]} 11. Na3 {[%emt 0:00:13]} a6 {[%emt 0:00:05]} 12. Nc2 {[%emt 0:00:12]} O-O {[%emt 0:00:02]} 13. Ne3 {[%emt 0:02:37]} b5 $14 {[%emt 0:02:45]} 14. Ng4 {[%emt 0:02:48]} Nf5 {[%emt 0:01:41]} 15. Qd2 {[%emt 0:02:36]} Re8 {[%emt 0:04:25]} 16. Nh6+ {[%emt 0:01:09]} Nxh6 {[%emt 0:00:15]} 17. Bxh6 {[%emt 0:00:02]} Qd6 {[%emt 0:00:28]} 18. Bxg7 {[%emt 0:01:53]} Kxg7 {[%emt 0:00:01]} 19. Ne5 {[%emt 0:00:03]} Nxe5 {[%emt 0:00:52]} 20. Rxe5 {[%emt 0:00:34]} a5 {[%emt 0:00:23]} 21. Re3 {[%emt 0:01:07]} b4 {[%emt 0:00:58]} 22. Rh3 {[%emt 0:00:16]} h5 {[%emt 0:00:02]} 23. g4 {[%emt 0:00:44]} hxg4 {[%emt 0:01:49]} 24. Qh6+ {[%emt 0:00:44]} Kf6 {[%emt 0:00:03]} 25. Qh4+ {[%emt 0:00:03]} Kf5 {[%emt 0:00:40]} 26. Rg3 {[%emt 0:00:29]} Rh8 {[%emt 0:00:29]} 27. Qxg4+ {[%emt 0:00:02]} Kf6 {[%emt 0:00:01]} 28. Rf3+ {[%emt 0:00:11]} Kg7 {[%emt 0:00:02]} 29. Qg3 {[%emt 0:00:01]} Qxg3+ {[%emt 0:00:07]} 30. fxg3 {[%emt 0:00:03]} Rhc8 {[%emt 0:00:11]} 31. Rc1 {[%emt 0:00:34]} Rab8 {[%emt 0:00:07]} 32. b3 {[%emt 0:00:13]} Rc7 {[%emt 0:00:58]} 33. c4 {[%emt 0:00:02]} dxc4 {[%emt 0:00:08]} 34. Rxc4 {[%emt 0:00:02]} Rbc8 {[%emt 0:00:35]} 35. Rxc7 {[%emt 0:00:18]} Rxc7 {[%emt 0:00:01]} 36. Rf2 {[%emt 0:00:09]} Rc1+ {[%emt 0:00:34]} 37. Kg2 {[%emt 0:00:05]} Rd1 {[%emt 0:00:01]} 38. Rc2 {[%emt 0:00:20]} Rxd4 {[%emt 0:00:02]} 39. Kf3 {[%emt 0:00:02]} Rd5 {[%emt 0:00:04]} 40. Ke3 {[%emt 0:00:08]} f5 {[%emt 0:00:03]} 41. Rc7+ {[%emt 0:00:15]} Kf6 {[%emt 0:00:01]} 42. Ra7 {[%emt 0:00:01]} g5 {[%emt 0:00:22]} 43. Rc7 {[%emt 0:00:21]} Ke5 {[%emt 0:00:42]} 44. Rc4 {[%emt 0:00:02]} Kd6 {[%emt 0:00:02]} 45. Rc8 {[%emt 0:00:05]} Rc5 {[%emt 0:00:12]} 46. Ra8 {[%emt 0:00:30]} Ke5 {[%emt 0:00:01]} 47. Kd3 {[%emt 0:00:10]} f4 {[%emt 0:00:05]} 48. gxf4+ {[%emt 0:00:02]} gxf4 {[%emt 0:00:02]} *

[Event "29th Czech Open-Rapid 2018"]
[Site "Pardubice"]
[Date "2018.07.19"]
[Round "5"]
[White "Buchcar, Tomas"]
[Black "Vestfal, Jan"]
[Result "1-0"]
[ECO "A22"]
[WhiteElo "2174"]
[BlackElo "1407"]
[Annotator "NA"]
[PlyCount "43"]
[EventDate "2018.07.18"]
[EventType "swiss"]
[EventCountry "CZE"]
[SourceTitle "playchess.com"]
[Source "ChessBase"]
[SourceQuality "1"]
[TimeControl "900+10"]

1. c4 {[%emt 0:00:00]} e5 {[%emt 0:00:00]} 2. Nc3 {[%emt 0:00:02]} Nf6 {[%emt 0:00:00]} 3. g3 {[%emt 0:00:02]} d5 {[%emt 0:00:00]} 4. cxd5 {[%emt 0:00:02]} Nxd5 {[%emt 0:00:01]} 5. Bg2 {[%emt 0:00:02]} Be6 {[%emt 0:00:12]} 6. d3 {[%emt 0:00:09]} Nc6 {[%emt 0:00:21]} 7. Nf3 {[%emt 0:00:12]} f6 {[%emt 0:00:03]} 8. O-O {[%emt 0:00:05]} Qd7 {[%emt 0:00:01]} 9. a3 {[%emt 0:00:22]} Be7 {[%emt 0:00:15]} 10. Re1 {[%emt 0:01:03]} g5 {[%emt 0:00:13]} 11. Nxd5 {[%emt 0:06:13]} Bxd5 {[%emt 0:00:16]} 12. Be3 {[%emt 0:00:11]} O-O-O {[%emt 0:00:09]} 13. b4 {[%emt 0:00:13]} h5 {[%emt 0:00:06]} 14. Qa4 {[%emt 0:01:01]} Kb8 {[%emt 0:01:26]} 15. Rac1 {[%emt 0:00:02]} a6 {[%emt 0:00:27]} 16. Bc5 {[%emt 0:00:51]} Qe6 {[%emt 0:01:08]} 17. Bxe7 {[%emt 0:00:20]} Bb3 {[%emt 0:00:34]} 18. Rxc6 {[%emt 0:00:01]} Qxe7 {[%emt 0:01:15]} 19. Qxb3 {[%emt 0:00:06]} bxc6 {[%emt 0:00:09]} 20. Qc4 {[%emt 0:00:09]} h4 {[%emt 0:00:50]} 21. Qxc6 {[%emt 0:00:18]} Rd6 {[%emt 0:00:25]} 22. Nxe5 {[%emt 0:00:05]} 1-0